bitfinex-derivatives/quotes_SOLF0:USTF0_20250818
["timestamp","ask_amount","ask_price","bid_price","bid_amount"]
[1755483893956,2.35,184.96,184.9,2.99]
[1755483894361,2.35,184.96,184.88,2.99]
[1755483894564,2.35,184.94,184.88,2.99]
[1755483895470,5.405,184.9,184.88,2.99]
[1755483895862,5.4053,184.89,184.76,425.66]
[1755483896062,2.35,184.94,184.76,425.66]
[1755483896265,2.35,184.94,184.76,363.66]
[1755483896464,2.35,184.94,184.83,5.407]
[1755483896663,2.35,184.94,184.84,2.99]
[1755483897559,3.99007474,184.93,184.84,2.99]
[1755483897760,3.99003834,184.92,184.84,2.99]
[1755483897968,2.35,184.94,184.84,2.99]
[1755483898172,6.34019112,184.93,184.84,2.99]
[1755483898365,2.35,184.91,184.84,2.99]
[1755483899378,5.4058,184.88,184.84,2.99]
[1755483900069,5.4058,184.87,184.84,2.99]
[1755483900273,2.35,184.97,184.84,2.99]
[1755483900970,2.35,185.0,184.84,2.99]
[1755483901162,2.35,184.98,184.84,2.99]
[1755483901879,2.35,184.98,184.89,2.99]
[1755483902273,2.35,184.98,184.84,2.99]
[1755483902871,2.35,184.98,184.89,2.99]
[1755483904174,5.4041,184.93,184.89,2.99]
[1755483904570,2.35,185.01,184.89,2.99]
[1755483904778,2.35,185.01,184.95,2.99]
[1755483905181,355.21654239,185.03,184.95,2.99]
[1755483905475,147.42,185.09,184.91,9.37011755]
[1755483905674,6.3246841,185.07,184.92,2.99]
[1755483905873,3.9746841,185.06,184.92,2.99]
[1755483906069,6.3246841,185.06,184.92,2.99]
[1755483906275,2.35,185.06,184.92,2.99]
[1755483906471,2.35,185.06,184.85,144.3403437]
[1755483906472,2.35,185.06,184.87,9.37011755]
[1755483906671,2.35,185.06,184.85,144.3403437]
[1755483906672,2.35,185.04,184.94,2.99]
[1755483906877,5.4035,184.95,184.94,2.99]
[1755483907181,2.35,184.98,184.91,2.99]
[1755483907784,2.35,185.01,184.91,2.99]
[1755483908479,2.35,185.01,184.92,43.26]
[1755483908776,5.404,184.94,184.92,46.25]
[1755483909078,156.67011755,185.05,184.92,46.25]
[1755483909277,2.35,184.95,184.92,46.25]
[1755483909777,156.67011755,185.05,184.92,46.25]
[1755483909778,2.35,184.94,184.92,43.26]
[1755483909976,9.37011755,185.01,184.92,43.26]
[1755483909977,7.7541,184.93,184.92,43.26]
[1755483910685,5.4041,184.93,184.92,46.25]
[1755483912383,7.7541,184.93,184.92,43.26]
[1755483913583,7.7541,184.93,184.92,35.0026]
[1755483913778,2.35,184.93,184.86,2.99]
[1755483914087,2.35,184.93,184.86,8.3961]
[1755483914285,5.4049,184.91,184.87,2.99]
[1755483914782,147.16,184.97,184.87,2.99]
[1755483914783,2.35,184.94,184.87,2.99]
[1755483914976,3.96034376,184.93,184.87,2.99]
[1755483915180,156.53011755,184.97,184.87,2.99]
[1755483915181,2.35,184.96,184.87,2.99]
[1755483915383,5.4048,184.91,184.87,2.99]
[1755483915681,2.35,184.94,184.87,2.99]
[1755483915884,147.16,184.97,184.88,5.4055]
[1755483915885,5.4044,184.92,184.88,5.4055]
[1755483916184,2.35,184.96,184.89,2.99]
[1755483916782,3.96634001,184.95,184.9,17.41]
[1755483916976,5.4047,184.91,184.9,17.41]
[1755483917381,7.7547,184.91,184.9,17.41]
[1755483919179,5.4047,184.91,184.9,17.41]
[1755483919580,5.4047,184.91,184.9,20.43]
[1755483919785,7.7447,184.91,184.9,17.41]
[1755483919981,5.4047,184.91,184.9,17.41]
[1755483920488,6.30913999,184.91,184.79,3.02]
[1755483920694,2.34,184.89,184.79,3.02]
[1755483920880,3.96913999,184.88,184.79,3.02]
[1755483921082,2.34,184.89,184.79,3.02]
[1755483921388,2.34,184.87,184.8,3.02]
[1755483921590,5.4076,184.81,184.8,3.02]
[1755483921983,5.4074,184.82,184.81,3.02]
[1755483922889,5.4074,184.82,184.69,9.37011755]
[1755483922890,5.4081,184.8,184.79,3.02]
[1755483923089,2.34,184.84,184.69,9.37011755]
[1755483923396,2.34,184.87,184.7,3.02]
[1755483923690,146.92,184.89,184.7,3.02]
[1755483923691,2.34,184.85,184.7,3.02]
[1755483923885,5.4081,184.8,184.7,3.02]
[1755483924085,2.34,184.83,184.78,3.02]
[1755483924287,2.34,184.86,184.78,3.02]
[1755483924486,5.4072,184.83,184.78,3.02]
[1755483924688,2.34,184.86,184.79,3.02]
[1755483925191,3.96859311,184.85,184.8,3.02]
[1755483925386,3.9672632,184.84,184.71,19.12]
[1755483925690,3.96614261,184.83,184.71,19.12]
[1755483925994,2.34,184.82,184.73,3.02]
[1755483926585,6.30892243,184.81,184.73,8.4297]
[1755483926798,3.96892243,184.8,184.74,3.02]
[1755483927086,6.30892243,184.8,184.74,3.02]
[1755483927286,5.4092,184.76,184.72,5.4101]
[1755483927587,2.34,184.84,184.72,3.02]
[1755483927893,5.4081,184.8,184.72,3.02]
[1755483928084,3.97633863,184.79,184.72,3.02]
[1755483928286,5.4078,184.81,184.72,3.02]
[1755483928587,2.34,184.83,184.72,3.02]
[1755483928789,5.409,184.77,184.73,5.4098]
[1755483928987,2.34,184.84,184.72,3.02]
[1755483929188,2.34,184.82,184.72,3.02]
[1755483929395,3.97652679,184.81,184.77,5.4086]
[1755483929694,3.97652679,184.8,184.79,3.02]
[1755483929881,3.97652679,184.8,184.77,5.4085]
[1755483930080,2.34,184.84,184.71,19.12]
[1755483930292,3.98609383,184.83,184.71,19.12]
[1755483930484,2.34,184.87,184.72,3.02]
[1755483930684,2.34,184.87,184.73,3.02]
[1755483930685,5.4069,184.84,184.73,3.02]
[1755483930987,3.98822157,184.83,184.73,3.02]
[1755483931181,5.4069,184.84,184.8,3.02]
[1755483931386,3.99155869,184.83,184.73,3.02]
[1755483931583,6.33155869,184.82,184.75,5.4092]
[1755483931788,3.99155869,184.81,184.73,3.02]
[1755483931988,2.34,184.85,184.73,3.02]
[1755483932192,3.99066044,184.84,184.73,3.02]
[1755483932395,3.99066044,184.83,184.73,3.02]
[1755483932598,3.99066044,184.82,184.73,3.02]
[1755483932894,2.34,184.85,184.8,5.4076]
[1755483933093,2.35,184.83,184.72,3.02]
[1755483933388,5.4085,184.78,184.75,3.02]
[1755483933596,2.35,184.84,184.77,3.02]
[1755483933795,3.98142551,184.83,184.77,3.02]
[1755483933993,2.35,184.84,184.77,3.02]
[1755483933994,3.98142551,184.82,184.77,3.02]
[1755483934194,3.98142551,184.82,184.79,3.02]
[1755483934195,3.98142551,184.81,184.79,3.02]
[1755483934398,2.35,184.84,184.79,3.02]
[1755483934592,3.98193234,184.83,184.79,3.02]
[1755483934798,2.35,184.87,184.79,3.02]
[1755483935094,3.98223539,184.86,184.79,3.02]
[1755483935293,2.35,184.87,184.82,3.02]
[1755483935294,9.38883539,184.85,184.82,3.02]
[1755483935502,3.98223539,184.84,184.83,3.02]
[1755483936088,5.4062,184.86,184.82,5.4073]
[1755483936288,2.35,184.89,184.73,9.37011755]
[1755483936289,3.98251779,184.85,184.84,3.02]
[1755483936485,2.35,184.91,184.84,3.02]
[1755483936685,5.4055,184.89,184.85,5.4063]
[1755483936886,5.4055,184.89,184.87,3.02]
[1755483936887,3.98227977,184.88,184.87,3.02]
[1755483937300,5.4055,184.89,184.86,5.4061]
[1755483937491,3.98084613,184.88,184.86,5.4061]
[1755483937789,5.4055,184.89,184.86,5.4061]
[1755483937985,3.98099774,184.88,184.87,3.02]
[1755483938194,3.98102695,184.88,184.85,3.02]
[1755483938395,2.35,184.91,184.85,3.02]
[1755483938598,5.4058,184.88,184.86,3.02]
[1755483938993,8.16471654,184.94,184.82,3.02]
[1755483939299,2.35,184.87,184.82,3.02]
[1755483939500,3.9817103,184.86,184.74,3.02]
[1755483939689,3.98147678,184.85,184.74,3.02]
[1755483939888,3.98115808,184.84,184.74,3.02]
[1755483940092,2.35,184.85,184.78,3.02]
[1755483940291,2.35,184.8,184.71,19.12]
[1755483940497,2.35,184.8,184.72,3.02]
[1755483941000,3.98030991,184.79,184.72,3.02]
[1755483941205,2.35,184.78,184.72,3.02]
[1755483942701,2.35,184.85,184.72,3.02]
[1755483942904,15.18483409,184.86,184.72,3.02]
[1755483942905,2.35,184.83,184.72,3.02]
[1755483943099,3.97642595,184.82,184.72,3.02]
[1755483943404,6.32642595,184.81,184.72,3.02]
[1755483943599,2.35,184.81,184.72,3.02]
[1755483943802,155.71011755,184.86,184.71,19.12]
[1755483944110,2.35,184.84,184.72,3.02]
[1755483944298,5.4091,184.76,184.72,5.4101]
[1755483944603,5.4091,184.76,184.75,3.02]
[1755483946297,2.35,184.76,184.72,3.02]
[1755483946497,2.35,184.76,184.73,3.02]
[1755483946799,5.4099,184.74,184.73,3.02]
[1755483947099,2.35,184.81,184.71,19.12]
[1755483947303,2.35,184.79,184.71,19.12]
[1755483947602,2.35,184.77,184.71,19.12]
[1755483948002,5.4102,184.72,184.71,22.07]
[1755483948199,2.35,184.75,184.72,2.95]
[1755483949013,2.35,184.81,184.64,2.95]
[1755483949302,9.37011755,184.82,184.64,2.95]
[1755483949303,2.35,184.79,184.64,2.95]
[1755483949501,2.35,184.79,184.68,2.95]
[1755483949702,2.35,184.77,184.65,2.95]
[1755483949902,2.35,184.75,184.65,2.95]
[1755483950107,5.4112,184.69,184.65,2.95]
[1755483951710,5.4115,184.68,184.65,2.95]
[1755483951901,2.35,184.72,184.66,2.95]
[1755483953102,5.4114,184.69,184.66,2.95]
[1755483953298,5.4114,184.69,184.65,5.4123]
[1755483953500,9.37011755,184.78,184.6,19.15]
[1755483953705,2.35,184.73,184.67,2.95]
[1755483953906,6.38082512,184.72,184.61,2.95]
[1755483954103,9.37011755,184.78,184.61,2.95]
[1755483954417,2.35,184.74,184.61,2.95]
[1755483954606,5.4107,184.71,184.67,2.95]
[1755483954805,2.35,184.69,184.66,2.95]
[1755483955008,5.4117,184.67,184.66,2.95]
[1755483955305,5.4117,184.67,184.65,2.95]
[1755483955509,5.4117,184.67,184.66,2.95]
[1755483957209,5.4114,184.68,184.64,5.4125]
[1755483957415,5.4114,184.68,184.65,2.95]
[1755483958117,5.4109,184.7,184.64,5.4125]
[1755483958317,2.35,184.69,184.67,2.95]
[1755483960307,2.35,184.72,184.66,2.95]
[1755483960513,2.35,184.77,184.66,2.95]
[1755483960713,4.03210096,184.76,184.73,5.4099]
[1755483960914,145.94,184.78,184.64,2.95]
[1755483961115,2.35,184.76,184.64,2.95]
[1755483961314,2.35,184.74,184.64,2.95]
[1755483961515,4.03239118,184.73,184.64,2.95]
[1755483961818,2.35,184.77,184.64,2.95]
[1755483962020,151.3485,184.78,184.64,2.95]
[1755483962221,4.03456289,184.77,184.64,2.95]
[1755483962433,145.94,184.78,184.75,2.95]
[1755483962726,4.03665096,184.77,184.75,2.95]
[1755483962926,148.29,184.78,184.74,5.4096]
[1755483963124,4.03557011,184.77,184.76,2.95]
[1755483963426,363.58,184.81,184.67,9.37011755]
[1755483963628,368.9876,184.81,184.76,5.4088]
[1755483963822,2.35,184.83,184.68,2.95]
[1755483964023,4.04005521,184.82,184.68,2.95]
[1755483964226,4.04005521,184.81,184.68,2.95]
[1755483964427,2.35,184.83,184.68,2.95]
[1755483964625,4.03965799,184.82,184.68,2.95]
[1755483964824,2.35,184.85,184.8,2.95]
[1755483965133,4.03997439,184.84,184.8,2.95]
[1755483965333,515.33471654,184.91,184.71,9.37011755]
[1755483965525,4.04082056,184.9,184.72,2.95]
[1755483965733,2.35,184.88,184.72,2.95]
[1755483966025,5.4063,184.86,184.72,2.95]
[1755483966220,4.04082056,184.85,184.72,2.95]
[1755483966427,5.4064,184.85,184.8,5.4076]
[1755483966628,7.7564,184.85,184.83,2.95]
[1755483968520,509.52,184.91,184.79,2.95]
[1755483968731,2.35,184.88,184.79,2.95]
[1755483969039,7.7574,184.82,184.8,2.95]
[1755483969231,5.4074,184.82,184.81,2.95]
[1755483969828,9.37011755,184.89,184.67,9.37011755]
[1755483970135,2.35,184.84,184.68,2.95]
[1755483970444,2.35,184.82,184.73,2.95]
[1755483970732,5.4081,184.8,184.75,5.4093]
[1755483970925,2.35,184.82,184.75,2.95]
[1755483971127,2.35,184.82,184.65,145.7]
[1755483971128,2.35,184.8,184.66,2.95]
[1755483971332,2.35,184.78,184.66,2.95]
[1755483971536,5.4095,184.75,184.66,2.95]
[1755483971739,2.35,184.76,184.66,2.95]
[1755483972440,5.41,184.73,184.71,2.95]
[1755483972635,5.41,184.73,184.72,2.95]
[1755483972838,145.64,184.83,184.72,2.95]
[1755483972839,2.35,184.75,184.72,2.95]
[1755483973545,5.4099,184.74,184.72,2.95]
[1755483973739,5.4099,184.74,184.73,2.95]
[1755483974542,2.35,184.8,184.68,22.1]
[1755483974840,2.35,184.78,184.68,22.1]
[1755483975144,9.37011755,184.81,184.68,22.1]
[1755483975145,5.411,184.7,184.68,22.1]
[1755483975437,4.04008547,184.77,184.68,19.15]
[1755483975438,9.37011755,184.77,184.68,19.15]
[1755483975634,4.03989127,184.76,184.68,19.15]
[1755483975829,7.7611,184.69,184.68,19.15]
[1755483976341,5.4111,184.69,184.68,19.15]
[1755483977038,5.4107,184.71,184.68,22.1]
[1755483977247,2.35,184.76,184.69,2.95]
[1755483977444,4.03980154,184.75,184.69,2.95]
[1755483977740,2.35,184.76,184.69,2.95]
[1755483978043,2.35,184.78,184.69,2.95]
[1755483978839,2.35,184.74,184.69,2.9]
[1755483979032,9.37011755,184.8,184.69,2.9]
[1755483979342,5.4106,184.71,184.7,2.9]
[1755483979539,2.35,184.79,184.68,19.15]
[1755483979743,2.35,184.77,184.68,19.15]
[1755483979934,2.35,184.75,184.68,19.15]
[1755483980136,4.0339689,184.74,184.68,19.15]
[1755483980436,5.411,184.7,184.69,2.9]
[1755483980844,2.35,184.74,184.68,19.15]
[1755483981143,2.35,184.76,184.69,2.9]
[1755483981343,2.35,184.76,184.71,2.9]
[1755483981639,2.35,184.78,184.71,2.9]
[1755483981938,5.4095,184.75,184.71,2.9]
[1755483982142,9.37011755,184.8,184.7,5.4108]
[1755483982338,2.35,184.78,184.69,2.9]
[1755483982541,2.35,184.76,184.69,2.9]
[1755483982738,2.35,184.74,184.69,2.9]
[1755483982945,5.4108,184.7,184.69,2.9]
[1755483983238,2.35,184.79,184.69,2.9]
[1755483983446,2.35,184.77,184.7,2.9]
[1755483983637,4.02612669,184.76,184.7,2.9]
[1755483984033,5.4096,184.75,184.7,2.9]
[1755483984343,2.35,184.79,184.7,2.9]
[1755483984541,5.4093,184.75,184.74,2.9]
[1755483986949,2.35,184.78,184.71,2.9]
[1755483987151,145.46,184.81,184.71,2.9]
[1755483987152,6.38466535,184.77,184.71,2.9]
[1755483987349,4.03466535,184.76,184.71,2.9]
[1755483987851,5.4098,184.74,184.71,2.9]
[1755483988039,2.35,184.8,184.71,2.9]
[1755483988246,4.03679632,184.79,184.71,2.9]
[1755483988546,4.03679632,184.78,184.71,2.9]
[1755483989343,4.03679632,184.77,184.71,2.9]
[1755483989548,5.4099,184.73,184.71,2.9]
[1755483989748,5.4099,184.73,184.72,2.9]
[1755483990251,5.4106,184.71,184.69,2.9]
[1755483990446,5.4106,184.71,184.7,2.9]
[1755483991155,5.4111,184.69,184.68,22.05]
[1755483991650,7.7611,184.69,184.68,19.15]
[1755483992853,5.4111,184.69,184.68,19.15]
[1755483993450,7.7611,184.69,184.68,19.15]
[1755483993753,5.4117,184.68,184.67,2.9]
[1755483994653,5.4109,184.7,184.57,2.9]
[1755483994848,2.35,184.74,184.67,5.4115]
[1755483995155,4.04002246,184.73,184.68,2.9]
[1755483995353,2.35,184.76,184.56,372.91011755]
[1755483995550,2.35,184.74,184.57,2.9]
[1755483995743,2.35,184.76,184.57,2.9]
[1755483995948,5.4101,184.73,184.69,5.411]
[1755483996256,5.4101,184.73,184.7,2.9]
[1755483996851,2.35,184.76,184.71,2.9]
[1755483997149,2.35,184.78,184.71,2.9]
[1755483997355,4.04296943,184.77,184.71,2.9]
[1755483997554,2.35,184.78,184.71,5.4103]
[1755483997858,6.39278557,184.77,184.72,2.9]
[1755483998154,2.35,184.77,184.74,2.9]
[1755483999255,5.4093,184.75,184.74,2.9]
[1755484000553,5.4097,184.74,184.71,2.9]
[1755484000747,5.4097,184.74,184.72,2.9]
[1755484000957,5.4097,184.74,184.73,2.9]
[1755484001658,5.4103,184.72,184.71,2.9]
[1755484002054,5.41,184.73,184.7,5.4108]
[1755484002261,5.41,184.73,184.72,2.9]
[1755484002458,9.37011755,184.83,184.58,19.17]
[1755484002666,2.35,184.77,184.67,2.9]
[1755484002854,2.35,184.75,184.67,2.9]
[1755484003055,6.39151275,184.74,184.67,2.9]
[1755484003365,2.35,184.78,184.67,2.9]
[1755484003562,5.4094,184.75,184.71,5.4104]
[1755484003859,144.8,184.8,184.72,2.9]
[1755484003860,2.35,184.8,184.72,2.9]
[1755484004052,5.4088,184.77,184.72,2.9]
[1755484004259,2.35,184.8,184.72,2.9]
[1755484004453,2.35,184.83,184.72,2.9]
[1755484004659,5.4081,184.8,184.76,5.4089]
[1755484004865,2.35,184.83,184.77,2.9]
[1755484005064,4.04412704,184.82,184.77,2.9]
[1755484005261,2.35,184.83,184.77,5.4087]
[1755484005460,6.39300916,184.82,184.79,2.9]
[1755484005659,2.35,184.82,184.8,2.9]
[1755484006070,2.35,184.84,184.66,9.37011755]
[1755484006262,4.04507373,184.83,184.66,9.37011755]
[1755484006466,5.4073,184.82,184.67,2.9]
[1755484006860,510.81,184.86,184.67,2.9]
[1755484007058,4.04530784,184.85,184.71,2.9]
[1755484007261,147.11,184.86,184.81,2.9]
[1755484007864,147.11,184.86,184.82,5.4072]
[1755484008071,147.11,184.86,184.71,2.88]
[1755484008271,144.64,184.92,184.71,2.88]
[1755484008468,4.04263081,184.91,184.71,2.88]
[1755484008673,2.35,184.88,184.71,2.88]
[1755484008871,2.35,184.86,184.71,2.88]
[1755484009068,4.04212511,184.85,184.71,2.88]
[1755484009371,5.4075,184.82,184.78,2.88]
[1755484010466,5.4076,184.81,184.78,2.88]
[1755484010774,5.4076,184.81,184.79,2.88]
[1755484011071,2.35,184.89,184.79,2.88]
[1755484011263,2.35,184.87,184.79,2.88]
[1755484011459,4.04278648,184.86,184.79,2.88]
[1755484011664,2.35,184.91,184.79,2.88]
[1755484011864,2.35,184.89,184.79,2.88]
[1755484012069,2.35,184.87,184.79,2.88]
[1755484012269,2.35,184.85,184.79,2.88]
[1755484013274,2.35,184.91,184.82,2.88]
[1755484013571,2.35,184.89,184.82,2.88]
[1755484013770,6.39227894,184.88,184.82,2.88]
[1755484013962,2.35,184.86,184.81,2.88]
[1755484014164,2.35,184.84,184.81,2.88]
[1755484014367,2.35,184.84,184.71,9.37011755]
[1755484014368,5.4072,184.83,184.71,9.37011755]
[1755484014568,5.4072,184.83,184.82,2.88]
[1755484014763,2.35,184.88,184.82,2.88]
[1755484014968,5.4067,184.85,184.83,2.88]
[1755484015277,5.4067,184.85,184.84,2.88]
[1755484015576,5.4059,184.87,184.83,2.88]
[1755484015769,2.35,184.89,184.83,2.88]
[1755484015962,2.35,184.87,184.72,2.88]
[1755484016167,2.35,184.85,184.8,2.88]
[1755484016773,2.35,184.94,184.81,2.88]
[1755484016974,2.35,184.92,184.81,2.88]
[1755484017181,2.35,184.9,184.82,5.4072]
[1755484017474,144.38,184.95,184.71,12.25011755]
[1755484017475,2.35,184.88,184.71,12.25011755]
[1755484017676,2.35,184.86,184.72,2.88]
[1755484017871,5.4064,184.85,184.72,2.88]
[1755484018268,5.4064,184.85,184.67,206.36]
[1755484018269,9.37011755,184.73,184.59,2.88]
[1755484018468,2.35,184.71,184.59,2.88]
[1755484018673,2.35,184.69,184.59,2.88]
[1755484018874,2.35,184.67,184.59,2.88]
[1755484019277,4.23028688,184.66,184.59,2.88]
[1755484019572,4.22977277,184.65,184.59,2.88]
[1755484019875,4.22977277,184.64,184.47,144.32]
[1755484020069,2.35,184.64,184.61,2.88]
[1755484020271,2.35,184.64,184.47,144.32]
[1755484020272,2.35,184.68,184.59,2.88]
[1755484020471,2.35,184.68,184.61,2.88]
[1755484021170,2.35,184.66,184.58,22.05]
[1755484021370,2.35,184.64,184.58,19.17]
[1755484021675,2.35,184.59,184.54,2.88]
[1755484021876,9.37011755,184.65,184.54,2.88]
[1755484022077,2.35,184.57,184.54,2.88]
[1755484024579,2.35,184.59,184.55,2.88]
[1755484025978,2.35,184.64,184.56,2.88]
[1755484026274,2.35,184.67,184.56,2.88]
[1755484026476,4.21364431,184.66,184.56,2.88]
[1755484026676,169.97011755,184.77,184.57,9.37011755]
[1755484026880,2.35,184.73,184.58,2.88]
[1755484027085,14.07848142,184.72,184.58,2.88]
[1755484027377,2.35,184.73,184.61,9.37011755]
[1755484027584,2.35,184.76,184.62,2.88]
[1755484027874,2.35,184.79,184.66,2.88]
[1755484028077,2.35,184.76,184.7,2.88]
[1755484028471,5.4095,184.75,184.7,2.88]
[1755484028784,2.35,184.73,184.66,2.88]
[1755484028976,2.35,184.71,184.66,2.88]
[1755484029176,2.35,184.79,184.66,2.88]
[1755484029380,2.35,184.77,184.66,2.88]
[1755484029576,2.35,184.75,184.66,2.88]
[1755484029881,2.35,184.73,184.66,2.88]
[1755484030282,2.35,184.73,184.67,5.4117]
[1755484031080,2.36,184.79,184.68,2.88]
[1755484031271,2.36,184.77,184.68,2.88]
[1755484031468,2.36,184.75,184.68,2.88]
[1755484031875,5.4097,184.74,184.68,2.88]
[1755484032077,2.36,184.75,184.68,2.88]
[1755484032475,5.81471654,184.84,184.68,2.88]
[1755484032676,6.58157219,184.79,184.68,2.88]
[1755484032885,4.22157219,184.78,184.68,2.88]
[1755484033082,2.36,184.79,184.68,2.88]
[1755484034182,7.7683,184.79,184.72,5.41]
[1755484034384,2.36,184.79,184.73,2.88]
[1755484034582,2.36,184.82,184.73,2.88]
[1755484034785,2.36,184.82,184.77,2.88]
[1755484034984,4.22355968,184.81,184.78,2.88]
[1755484035184,2.36,184.82,184.79,2.88]
[1755484035488,2.36,184.84,184.81,2.88]
[1755484035673,4.46000366,184.83,184.81,2.88]
[1755484035875,2.36,184.84,184.81,2.88]
[1755484036087,4.45988136,184.83,184.81,2.88]
[1755484036276,2.36,184.84,184.81,2.88]
[1755484036782,4.45806965,184.83,184.81,2.88]
[1755484036983,2.36,184.84,184.81,2.88]
[1755484037491,144.36,184.86,184.71,2.88]
[1755484037681,8.67572453,184.85,184.71,2.88]
[1755484037885,144.36,184.86,184.81,2.82]
[1755484038081,4.45679319,184.85,184.8,5.4077]
[1755484038287,2.36,184.87,184.81,2.82]
[1755484038477,4.45528552,184.86,184.81,2.82]
[1755484038681,2.36,184.87,184.81,8.2275]
[1755484038977,2.36,184.87,184.81,2.82]
[1755484039383,2.36,184.87,184.81,8.2275]
[1755484039580,2.36,184.87,184.82,2.82]
[1755484039784,2.36,184.87,184.83,2.82]
[1755484039991,7.7659,184.87,184.81,2.82]
[1755484040691,2.36,184.87,184.81,5.4075]
[1755484040893,5.4055,184.89,184.83,2.82]
[1755484041086,4.21494725,184.88,184.74,9.37011755]
[1755484041286,2.35,184.89,184.75,2.82]
[1755484041490,4.21299937,184.88,184.75,2.82]
[1755484041696,4.21344954,184.87,184.8,5.4076]
[1755484041998,2.35,184.89,184.81,2.82]
[1755484042187,11.96994308,184.88,184.81,2.82]
[1755484042383,2.35,184.92,184.81,2.82]
[1755484042695,4.2145573,184.91,184.81,2.82]
[1755484042897,2.35,184.94,184.83,2.82]
[1755484043192,205.03880084,184.95,184.83,2.82]
[1755484043391,205.03880084,184.95,184.92,2.82]
[1755484043392,4.21405994,184.94,184.92,2.82]
[1755484043594,207.38880084,184.95,184.93,2.82]
[1755484043791,4.22461443,184.94,184.93,2.82]
[1755484044195,207.38880084,184.95,184.93,2.82]
[1755484045100,207.38880084,184.95,184.9,5.4049]
[1755484045296,205.03880084,184.95,184.92,2.82]
[1755484045498,205.03880084,184.95,184.93,2.82]
[1755484045695,507.68,185.0,184.9,2.82]
[1755484045901,13.69749948,184.99,184.9,2.82]
[1755484046203,21.45133369,184.98,184.91,5.4044]
[1755484046501,4.22827886,184.97,184.87,2.82]
[1755484046692,2.35,184.99,184.93,5.4038]
[1755484046894,144.1,185.0,184.94,2.82]
[1755484047096,2.35,185.01,184.94,2.82]
[1755484047297,2.35,185.0,184.95,5.4032]
[1755484047500,2.35,185.0,184.97,2.82]
[1755484047701,2.35,184.99,184.97,2.82]
[1755484048105,2.35,184.99,184.86,9.37011755]
[1755484048303,2.35,185.02,184.87,2.82]
[1755484048504,8.67126473,185.01,184.87,2.82]
[1755484048804,4.54441836,185.0,184.87,2.82]
[1755484048999,2.35,185.04,184.87,2.82]
[1755484049207,13.77556665,185.03,184.91,2.82]
[1755484049393,8.76978557,185.02,184.91,2.82]
[1755484049595,7.7509,185.04,184.91,2.82]